Workbook

Sheet README
A1: FIRフィルタ計算用EXCELシート
A3: ●パラメータ | B3: 値 | D3: 反映される列
A4: サンプリング周波数 | B4: 44100 | D4: f-responseのomega列, io-sinwave, io-impulseのTime列
A5: 入力サイン波の周波数 | B5: 2000 | D5: io-sinwaveのx[n]列
A6: F特計算周波数のステップ | B6: 100 | D6: f-responseのfrequency列
A7: （＊）F特の計算、出力の計算にはVBAを使います（詳しくは弊社サイトhttp://digitalfilter.comの「お役立ちEXCEL for Filters」ご参照）
A8: （＊）FIRの係数はf-responseシートのD列に直接入力します。係数の数（140）を変更する際はVBAも変更しましょう
A10: ●シートの説明（詳しくは弊社サイトhttp://digitalfilter.comの「スマホとEXCELで学ぶ！実践ディジタル信号処理入門」ご参照）
A11: f-response | B11: 係数から周波数特性を求める。Gain（振幅）とTheta（位相）
A12: io-sinwave | B12: 入出力特性。サイン波を入力した際の出力
A13: io-impulse | B13: インパルス応答。単位インパルスを入力した際の出力
A15: ●その他追記事項
A16: タップ数（次数、係数の数）N=140のFIRフィルタ.（以下にブロック図、差分方程式、伝達関数）
A47: 改訂履歴
A48: 2024/03/11 : version 1.0
A50: by Toshio Iwata at DIGITALFILTER.COM, all rights reserved
A52: 詳しい説明・使用法は弊社サイトhttp://digitalfilter.comの「スマホとEXCELで学ぶ！実践ディジタル信号処理入門」を参考にしてください
A53: 本EXCELシートの無断配布を禁じます（上記サイトからダウンロードして使用してください）
A54: 本EXCELシートはユーザー各自の責任において使用してください

Sheet f-response
A1: freq-base | B1: frequency | C1: omega | D1: FIRの係数 | E1: Areal1 | F1: Aimag1 | G1: Gain [dB] | H1: Theta [rad]
A2: 0 | B2: =A2*README!B$6 -> 0 | C2: =2*3.14159*B2/README!B$4 -> 0 | D2: 7.182035e-05 | G2: =10*LOG(E2^2+F2^2) ->  | H2: =ATAN2(E2, F2) -> 
A3: 1 | B3: =A3*README!B$6 -> 100 | C3: =2*3.14159*B3/README!B$4 -> 0.0142475737 | D3: 8.41867e-05 | G3: =10*LOG(E3^2+F3^2) ->  | H3: =ATAN2(E3, F3) -> 
A4: 2 | B4: =A4*README!B$6 -> 200 | C4: =2*3.14159*B4/README!B$4 -> 0.02849514739 | D4: 0.00012696623
A5: 3 | B5: =A5*README!B$6 -> 300 | C5: =2*3.14159*B5/README!B$4 -> 0.04274272109 | D5: 0.00017749064
A6: 4 | B6: =A6*README!B$6 -> 400 | C6: =2*3.14159*B6/README!B$4 -> 0.05699029478 | D6: 0.0002335571
A7: 5 | B7: =A7*README!B$6 -> 500 | C7: =2*3.14159*B7/README!B$4 -> 0.07123786848 | D7: 0.00029188679
A8: 6 | B8: =A8*README!B$6 -> 600 | C8: =2*3.14159*B8/README!B$4 -> 0.08548544218 | D8: 0.00034776506
A9: 7 | B9: =A9*README!B$6 -> 700 | C9: =2*3.14159*B9/README!B$4 -> 0.09973301587 | D9: 0.00039598226
A10: 8 | B10: =A10*README!B$6 -> 800 | C10: =2*3.14159*B10/README!B$4 -> 0.1139805896 | D10: 0.0004305031
A11: 9 | B11: =A11*README!B$6 -> 900 | C11: =2*3.14159*B11/README!B$4 -> 0.1282281633 | D11: 0.00044534396
A12: 10 | B12: =A12*README!B$6 -> 1000 | C12: =2*3.14159*B12/README!B$4 -> 0.142475737 | D12: 0.00043494381
A13: 11 | B13: =A13*README!B$6 -> 1100 | C13: =2*3.14159*B13/README!B$4 -> 0.1567233107 | D13: 0.00039480186
A14: 12 | B14: =A14*README!B$6 -> 1200 | C14: =2*3.14159*B14/README!B$4 -> 0.1709708844 | D14: 0.00032223759
A15: 13 | B15: =A15*README!B$6 -> 1300 | C15: =2*3.14159*B15/README!B$4 -> 0.185218458 | D15: 0.00021671017
A16: 14 | B16: =A16*README!B$6 -> 1400 | C16: =2*3.14159*B16/README!B$4 -> 0.1994660317 | D16: 8.037828e-05
A17: 15 | B17: =A17*README!B$6 -> 1500 | C17: =2*3.14159*B17/README!B$4 -> 0.2137136054 | D17: -8.178581e-05
A18: 16 | B18: =A18*README!B$6 -> 1600 | C18: =2*3.14159*B18/README!B$4 -> 0.2279611791 | D18: -0.00026196849
A19: 17 | B19: =A19*README!B$6 -> 1700 | C19: =2*3.14159*B19/README!B$4 -> 0.2422087528 | D19: -0.00044979336
A20: 18 | B20: =A20*README!B$6 -> 1800 | C20: =2*3.14159*B20/README!B$4 -> 0.2564563265 | D20: -0.00063300034 | J20: F特の計算にはVBAを使います（詳しくは弊社サイトhttp://digitalfilter.comの「スマホとEXCELで学ぶ！実践ディジタル信号処理入門」ご参照）
A21: 19 | B21: =A21*README!B$6 -> 1900 | C21: =2*3.14159*B21/README!B$4 -> 0.2707039002 | D21: -0.00079822392
A22: 20 | B22: =A22*README!B$6 -> 2000 | C22: =2*3.14159*B22/README!B$4 -> 0.2849514739 | D22: -0.00093209977
A23: 21 | B23: =A23*README!B$6 -> 2100 | C23: =2*3.14159*B23/README!B$4 -> 0.2991990476 | D23: -0.00102239525
A24: 22 | B24: =A24*README!B$6 -> 2200 | C24: =2*3.14159*B24/README!B$4 -> 0.3134466213 | D24: -0.00105921752
A25: 23 | B25: =A25*README!B$6 -> 2300 | C25: =2*3.14159*B25/README!B$4 -> 0.327694195 | D25: -0.00103618726
A26: 24 | B26: =A26*README!B$6 -> 2400 | C26: =2*3.14159*B26/README!B$4 -> 0.3419417687 | D26: -0.00095132364
A27: 25 | B27: =A27*README!B$6 -> 2500 | C27: =2*3.14159*B27/README!B$4 -> 0.3561893424 | D27: -0.00080769203
A28: 26 | B28: =A28*README!B$6 -> 2600 | C28: =2*3.14159*B28/README!B$4 -> 0.3704369161 | D28: -0.00061355416
A29: 27 | B29: =A29*README!B$6 -> 2700 | C29: =2*3.14159*B29/README!B$4 -> 0.3846844898 | D29: -0.00038210662
A30: 28 | B30: =A30*README!B$6 -> 2800 | C30: =2*3.14159*B30/README!B$4 -> 0.3989320635 | D30: -0.00013073432
A31: 29 | B31: =A31*README!B$6 -> 2900 | C31: =2*3.14159*B31/README!B$4 -> 0.4131796372 | D31: 0.00012022989
A32: 30 | B32: =A32*README!B$6 -> 3000 | C32: =2*3.14159*B32/README!B$4 -> 0.4274272109 | D32: 0.00034908891
A33: 31 | B33: =A33*README!B$6 -> 3100 | C33: =2*3.14159*B33/README!B$4 -> 0.4416747846 | D33: 0.00053469338
A34: 32 | B34: =A34*README!B$6 -> 3200 | C34: =2*3.14159*B34/README!B$4 -> 0.4559223583 | D34: 0.00065841958
A35: 33 | B35: =A35*README!B$6 -> 3300 | C35: =2*3.14159*B35/README!B$4 -> 0.470169932 | D35: 0.00070608854
A36: 34 | B36: =A36*README!B$6 -> 3400 | C36: =2*3.14159*B36/README!B$4 -> 0.4844175057 | D36: 0.0006696314
A37: 35 | B37: =A37*README!B$6 -> 3500 | C37: =2*3.14159*B37/README!B$4 -> 0.4986650794 | D37: 0.00054827526
A38: 36 | B38: =A38*README!B$6 -> 3600 | C38: =2*3.14159*B38/README!B$4 -> 0.5129126531 | D38: 0.00034916654
A39: 37 | B39: =A39*README!B$6 -> 3700 | C39: =2*3.14159*B39/README!B$4 -> 0.5271602268 | D39: 8.724161e-05
A40: 38 | B40: =A40*README!B$6 -> 3800 | C40: =2*3.14159*B40/README!B$4 -> 0.5414078005 | D40: -0.0002156315
A41: 39 | B41: =A41*README!B$6 -> 3900 | C41: =2*3.14159*B41/README!B$4 -> 0.5556553741 | D41: -0.00053224553
A42: 40 | B42: =A42*README!B$6 -> 4000 | C42: =2*3.14159*B42/README!B$4 -> 0.5699029478 | D42: -0.00083229153
A43: 41 | B43: =A43*README!B$6 -> 4100 | C43: =2*3.14159*B43/README!B$4 -> 0.5841505215 | D43: -0.00108504129
A44: 42 | B44: =A44*README!B$6 -> 4200 | C44: =2*3.14159*B44/README!B$4 -> 0.5983980952 | D44: -0.00126230126
A45: 43 | B45: =A45*README!B$6 -> 4300 | C45: =2*3.14159*B45/README!B$4 -> 0.6126456689 | D45: -0.00134130824
A46: 44 | B46: =A46*README!B$6 -> 4400 | C46: =2*3.14159*B46/README!B$4 -> 0.6268932426 | D46: -0.00130730999
A47: 45 | B47: =A47*README!B$6 -> 4500 | C47: =2*3.14159*B47/README!B$4 -> 0.6411408163 | D47: -0.00115554696
A48: 46 | B48: =A48*README!B$6 -> 4600 | C48: =2*3.14159*B48/README!B$4 -> 0.65538839 | D48: -0.00089238438
A49: 47 | B49: =A49*README!B$6 -> 4700 | C49: =2*3.14159*B49/README!B$4 -> 0.6696359637 | D49: -0.00053546396
A50: 48 | B50: =A50*README!B$6 -> 4800 | C50: =2*3.14159*B50/README!B$4 -> 0.6838835374 | D50: -0.00011274048
A51: 49 | B51: =A51*README!B$6 -> 4900 | C51: =2*3.14159*B51/README!B$4 -> 0.6981311111 | D51: 0.00033954324
A52: 50 | B52: =A52*README!B$6 -> 5000 | C52: =2*3.14159*B52/README!B$4 -> 0.7123786848 | D52: 0.00077984175
A53: 51 | B53: =A53*README!B$6 -> 5100 | C53: =2*3.14159*B53/README!B$4 -> 0.7266262585 | D53: 0.00116502121
A54: 52 | B54: =A54*README!B$6 -> 5200 | C54: =2*3.14159*B54/README!B$4 -> 0.7408738322 | D54: 0.00145446713
A55: 53 | B55: =A55*README!B$6 -> 5300 | C55: =2*3.14159*B55/README!B$4 -> 0.7551214059 | D55: 0.00161423911
A56: 54 | B56: =A56*README!B$6 -> 5400 | C56: =2*3.14159*B56/README!B$4 -> 0.7693689796 | D56: 0.0016208318
A57: 55 | B57: =A57*README!B$6 -> 5500 | C57: =2*3.14159*B57/README!B$4 -> 0.7836165533 | D57: 0.00146416717
A58: 56 | B58: =A58*README!B$6 -> 5600 | C58: =2*3.14159*B58/README!B$4 -> 0.797864127 | D58: 0.00114946087
A59: 57 | B59: =A59*README!B$6 -> 5700 | C59: =2*3.14159*B59/README!B$4 -> 0.8121117007 | D59: 0.00069769779
A60: 58 | B60: =A60*README!B$6 -> 5800 | C60: =2*3.14159*B60/README!B$4 -> 0.8263592744 | D60: 0.00014460222
A61: 59 | B61: =A61*README!B$6 -> 5900 | C61: =2*3.14159*B61/README!B$4 -> 0.8406068481 | D61: -0.00046192377
A62: 60 | B62: =A62*README!B$6 -> 6000 | C62: =2*3.14159*B62/README!B$4 -> 0.8548544218 | D62: -0.00106571637
A63: 61 | B63: =A63*README!B$6 -> 6100 | C63: =2*3.14159*B63/README!B$4 -> 0.8691019955 | D63: -0.00160734049
A64: 62 | B64: =A64*README!B$6 -> 6200 | C64: =2*3.14159*B64/README!B$4 -> 0.8833495692 | D64: -0.00202972498
A65: 63 | B65: =A65*README!B$6 -> 6300 | C65: =2*3.14159*B65/README!B$4 -> 0.8975971429 | D65: -0.00228391497
A66: 64 | B66: =A66*README!B$6 -> 6400 | C66: =2*3.14159*B66/README!B$4 -> 0.9118447166 | D66: -0.00233439964
A67: 65 | B67: =A67*README!B$6 -> 6500 | C67: =2*3.14159*B67/README!B$4 -> 0.9260922902 | D67: -0.00216344168 | G67: =10*LOG(E67^2+F67^2) ->  | H67: =ATAN2(E67, F67) -> 
A68: 66 | B68: =A68*README!B$6 -> 6600 | C68: =2*3.14159*B68/README!B$4 -> 0.9403398639 | D68: -0.00177393635
A69: 67 | B69: =A69*README!B$6 -> 6700 | C69: =2*3.14159*B69/README!B$4 -> 0.9545874376 | D69: -0.00119041498
A70: 68 | B70: =A70*README!B$6 -> 6800 | C70: =2*3.14159*B70/README!B$4 -> 0.9688350113 | D70: -0.00045797335
A71: 69 | B71: =A71*README!B$6 -> 6900 | C71: =2*3.14159*B71/README!B$4 -> 0.983082585 | D71: 0.00036088454
A72: 70 | B72: =A72*README!B$6 -> 7000 | C72: =2*3.14159*B72/README!B$4 -> 0.9973301587 | D72: 0.00119132219
D73: 0.00195276384
D74: 0.00256646361
D75: 0.0029633606
D76: 0.00309145841
D77: 0.00292198418
D78: 0.0024536314
D79: 0.00171436649
D80: 0.00076046608
D81: -0.00032728896
D82: -0.00145005272
D83: -0.00249952404
D84: -0.00336799715
D85: -0.00395896551
D86: -0.00419726999
D87: -0.00403777048
D88: -0.00347161131
D89: -0.00252931216
D90: -0.00128020276
D91: 0.00017196902
D92: 0.00169705541
D93: 0.00314958847
D94: 0.00438203821
D95: 0.00525908454
D96: 0.00567158976
D97: 0.00554889745
D98: 0.00486816938
D99: 0.00365968475
D100: 0.00200733711
D101: 4.399356e-05
D102: -0.00205816137
D103: -0.00410168191
D104: -0.00588124985
D105: -0.00720295837
D106: -0.00790377747
D107: -0.00786938075
D108: -0.00704854732
D109: -0.00546257172
D110: -0.00320848688
D111: -0.00045539859
D112: 0.00256617003
D113: 0.00558140353
D114: 0.00829364245
D115: 0.01041046472
D116: 0.01167129124
D117: 0.01187414675
D118: 0.01089916026
D119: 0.00872653543
D120: 0.00544708956
D121: 0.0012640047
D122: -0.0035148785
D123: -0.00849411162
D124: -0.01321612852
D125: -0.01719350773
D126: -0.01994569956
D127: -0.02103743737
D128: -0.02011579581
D129: -0.01694285673
D130: -0.01142118278
D131: -0.00360978885
D132: 0.00627101118
D133: 0.01784666033
D134: 0.03060716354
D135: 0.04393655431
D136: 0.0571510624
D137: 0.06954329835
D138: 0.08042924457
D139: 0.08919456997
D140: 0.09533679116
D141: 0.09850008266
D142: 0.09850008266
D143: 0.09533679116
D144: 0.08919456997
D145: 0.08042924457
D146: 0.06954329835
D147: 0.0571510624
D148: 0.04393655431
D149: 0.03060716354
D150: 0.01784666033
D151: 0.00627101118
D152: -0.00360978885
D153: -0.01142118278
D154: -0.01694285673
D155: -0.02011579581
D156: -0.02103743737
D157: -0.01994569956
D158: -0.01719350773
D159: -0.01321612852
D160: -0.00849411162
D161: -0.0035148785
D162: 0.0012640047
D163: 0.00544708956
D164: 0.00872653543
D165: 0.01089916026
D166: 0.01187414675
D167: 0.01167129124
D168: 0.01041046472
D169: 0.00829364245
D170: 0.00558140353
D171: 0.00256617003
D172: -0.00045539859
D173: -0.00320848688
D174: -0.00546257172
D175: -0.00704854732
D176: -0.00786938075
D177: -0.00790377747
D178: -0.00720295837
D179: -0.00588124985
D180: -0.00410168191
D181: -0.00205816137
D182: 4.399356e-05
D183: 0.00200733711
D184: 0.00365968475
D185: 0.00486816938
D186: 0.00554889745
D187: 0.00567158976
D188: 0.00525908454
D189: 0.00438203821
D190: 0.00314958847
D191: 0.00169705541
D192: 0.00017196902
D193: -0.00128020276
D194: -0.00252931216
D195: -0.00347161131
D196: -0.00403777048
D197: -0.00419726999
D198: -0.00395896551
D199: -0.00336799715
D200: -0.00249952404
... 81 more rows

Sheet io-sinwave
A1: index | B1: Time | C1: x[n] | D1: y[n]
A2: 0 | B2: =A2/README!B$4 -> 0 | C2: =SIN(2*PI()*B2*README!B$5) -> 0
A3: 1 | B3: =A3/README!B$4 -> 2.267573696e-05 | C3: =SIN(2*PI()*B3*README!B$5) -> 0.2811111133
A4: 2 | B4: =A4/README!B$4 -> 4.535147392e-05 | C4: =SIN(2*PI()*B4*README!B$5) -> 0.5395507432
A5: 3 | B5: =A5/README!B$4 -> 6.802721088e-05 | C5: =SIN(2*PI()*B5*README!B$5) -> 0.7544758509
A6: 4 | B6: =A6/README!B$4 -> 9.070294785e-05 | C6: =SIN(2*PI()*B6*README!B$5) -> 0.9085528243
A7: 5 | B7: =A7/README!B$4 -> 0.0001133786848 | C7: =SIN(2*PI()*B7*README!B$5) -> 0.9893554255
A8: 6 | B8: =A8/README!B$4 -> 0.0001360544218 | C8: =SIN(2*PI()*B8*README!B$5) -> 0.9903669615
A9: 7 | B9: =A9/README!B$4 -> 0.0001587301587 | C9: =SIN(2*PI()*B9*README!B$5) -> 0.9115058523
A10: 8 | B10: =A10/README!B$4 -> 0.0001814058957 | C10: =SIN(2*PI()*B10*README!B$5) -> 0.7591322106
A11: 9 | B11: =A11/README!B$4 -> 0.0002040816327 | C11: =SIN(2*PI()*B11*README!B$5) -> 0.5455349012
A12: 10 | B12: =A12/README!B$4 -> 0.0002267573696 | C12: =SIN(2*PI()*B12*README!B$5) -> 0.2879404501
A13: 11 | B13: =A13/README!B$4 -> 0.0002494331066 | C13: =SIN(2*PI()*B13*README!B$5) -> 0.007123732612
A14: 12 | B14: =A14/README!B$4 -> 0.0002721088435 | C14: =SIN(2*PI()*B14*README!B$5) -> -0.2742675107
A15: 13 | B15: =A15/README!B$4 -> 0.0002947845805 | C15: =SIN(2*PI()*B15*README!B$5) -> -0.5335392039
A16: 14 | B16: =A16/README!B$4 -> 0.0003174603175 | C16: =SIN(2*PI()*B16*README!B$5) -> -0.749781203
A17: 15 | B17: =A17/README!B$4 -> 0.0003401360544 | C17: =SIN(2*PI()*B17*README!B$5) -> -0.9055536889
A18: 16 | B18: =A18/README!B$4 -> 0.0003628117914 | C18: =SIN(2*PI()*B18*README!B$5) -> -0.9882936815
A19: 17 | B19: =A19/README!B$4 -> 0.0003854875283 | C19: =SIN(2*PI()*B19*README!B$5) -> -0.9913282381 | F19: 出力の計算にはVBAを使います（詳しくは弊社サイトhttp://digitalfilter.comの「スマホとEXCELで学ぶ！実践ディジタル信号処理入門」ご参照）
A20: 18 | B20: =A20/README!B$4 -> 0.0004081632653 | C20: =SIN(2*PI()*B20*README!B$5) -> -0.914412623
A21: 19 | B21: =A21/README!B$4 -> 0.0004308390023 | C21: =SIN(2*PI()*B21*README!B$5) -> -0.7637500456
A22: 20 | B22: =A22/README!B$4 -> 0.0004535147392 | C22: =SIN(2*PI()*B22*README!B$5) -> -0.5514913743
A23: 21 | B23: =A23/README!B$4 -> 0.0004761904762 | C23: =SIN(2*PI()*B23*README!B$5) -> -0.2947551744
A24: 22 | B24: =A24/README!B$4 -> 0.0004988662132 | C24: =SIN(2*PI()*B24*README!B$5) -> -0.01424710371
A25: 23 | B25: =A25/README!B$4 -> 0.0005215419501 | C25: =SIN(2*PI()*B25*README!B$5) -> 0.2674099894
A26: 24 | B26: =A26/README!B$4 -> 0.0005442176871 | C26: =SIN(2*PI()*B26*README!B$5) -> 0.5275005885
A27: 25 | B27: =A27/README!B$4 -> 0.000566893424 | C27: =SIN(2*PI()*B27*README!B$5) -> 0.745048505
A28: 26 | B28: =A28/README!B$4 -> 0.000589569161 | C28: =SIN(2*PI()*B28*README!B$5) -> 0.9025085982
A29: 27 | B29: =A29/README!B$4 -> 0.000612244898 | C29: =SIN(2*PI()*B29*README!B$5) -> 0.9871817834
A30: 28 | B30: =A30/README!B$4 -> 0.0006349206349 | C30: =SIN(2*PI()*B30*README!B$5) -> 0.9922392066
A31: 29 | B31: =A31/README!B$4 -> 0.0006575963719 | C31: =SIN(2*PI()*B31*README!B$5) -> 0.9172729889
A32: 30 | B32: =A32/README!B$4 -> 0.0006802721088 | C32: =SIN(2*PI()*B32*README!B$5) -> 0.7683291217
A33: 31 | B33: =A33/README!B$4 -> 0.0007029478458 | C33: =SIN(2*PI()*B33*README!B$5) -> 0.5574198602
A34: 32 | B34: =A34/README!B$4 -> 0.0007256235828 | C34: =SIN(2*PI()*B34*README!B$5) -> 0.3015549404
A35: 33 | B35: =A35/README!B$4 -> 0.0007482993197 | C35: =SIN(2*PI()*B35*README!B$5) -> 0.02136975179
A36: 34 | B36: =A36/README!B$4 -> 0.0007709750567 | C36: =SIN(2*PI()*B36*README!B$5) -> -0.2605388976
A37: 35 | B37: =A37/README!B$4 -> 0.0007936507937 | C37: =SIN(2*PI()*B37*README!B$5) -> -0.5214352034
A38: 36 | B38: =A38/README!B$4 -> 0.0008163265306 | C38: =SIN(2*PI()*B38*README!B$5) -> -0.7402779971
A39: 37 | B39: =A39/README!B$4 -> 0.0008390022676 | C39: =SIN(2*PI()*B39*README!B$5) -> -0.8994177069
A40: 38 | B40: =A40/README!B$4 -> 0.0008616780045 | C40: =SIN(2*PI()*B40*README!B$5) -> -0.9860197876
A41: 39 | B41: =A41/README!B$4 -> 0.0008843537415 | C41: =SIN(2*PI()*B41*README!B$5) -> -0.9930998207
A42: 40 | B42: =A42/README!B$4 -> 0.0009070294785 | C42: =SIN(2*PI()*B42*README!B$5) -> -0.9200868049
A43: 41 | B43: =A43/README!B$4 -> 0.0009297052154 | C43: =SIN(2*PI()*B43*README!B$5) -> -0.7728692065
A44: 42 | B44: =A44/README!B$4 -> 0.0009523809524 | C44: =SIN(2*PI()*B44*README!B$5) -> -0.5633200581
A45: 43 | B45: =A45/README!B$4 -> 0.0009750566893 | C45: =SIN(2*PI()*B45*README!B$5) -> -0.3083394031
A46: 44 | B46: =A46/README!B$4 -> 0.0009977324263 | C46: =SIN(2*PI()*B46*README!B$5) -> -0.02849131539
A47: 45 | B47: =A47/README!B$4 -> 0.001020408163 | C47: =SIN(2*PI()*B47*README!B$5) -> 0.2536545839
A48: 46 | B48: =A48/README!B$4 -> 0.0010430839 | C48: =SIN(2*PI()*B48*README!B$5) -> 0.5153433563
A49: 47 | B49: =A49/README!B$4 -> 0.001065759637 | C49: =SIN(2*PI()*B49*README!B$5) -> 0.7354699214
A50: 48 | B50: =A50/README!B$4 -> 0.001088435374 | C50: =SIN(2*PI()*B50*README!B$5) -> 0.8962811717
A51: 49 | B51: =A51/README!B$4 -> 0.001111111111 | C51: =SIN(2*PI()*B51*README!B$5) -> 0.984807753
A52: 50 | B52: =A52/README!B$4 -> 0.001133786848 | C52: =SIN(2*PI()*B52*README!B$5) -> 0.9939100368
A53: 51 | B53: =A53/README!B$4 -> 0.001156462585 | C53: =SIN(2*PI()*B53*README!B$5) -> 0.922853928
A54: 52 | B54: =A54/README!B$4 -> 0.001179138322 | C54: =SIN(2*PI()*B54*README!B$5) -> 0.7773700696
A55: 53 | B55: =A55/README!B$4 -> 0.001201814059 | C55: =SIN(2*PI()*B55*README!B$5) -> 0.5691916684
A56: 54 | B56: =A56/README!B$4 -> 0.001224489796 | C56: =SIN(2*PI()*B56*README!B$5) -> 0.315108218
A57: 55 | B57: =A57/README!B$4 -> 0.001247165533 | C57: =SIN(2*PI()*B57*README!B$5) -> 0.03561143311
A58: 56 | B58: =A58/README!B$4 -> 0.00126984127 | C58: =SIN(2*PI()*B58*README!B$5) -> -0.2467573977
A59: 57 | B59: =A59/README!B$4 -> 0.001292517007 | C59: =SIN(2*PI()*B59*README!B$5) -> -0.5092253566
A60: 58 | B60: =A60/README!B$4 -> 0.001315192744 | C60: =SIN(2*PI()*B60*README!B$5) -> -0.730624522
A61: 59 | B61: =A61/README!B$4 -> 0.001337868481 | C61: =SIN(2*PI()*B61*README!B$5) -> -0.8930991518
A62: 60 | B62: =A62/README!B$4 -> 0.001360544218 | C62: =SIN(2*PI()*B62*README!B$5) -> -0.9835457412
A63: 61 | B63: =A63/README!B$4 -> 0.001383219955 | C63: =SIN(2*PI()*B63*README!B$5) -> -0.9946698137
A64: 62 | B64: =A64/README!B$4 -> 0.001405895692 | C64: =SIN(2*PI()*B64*README!B$5) -> -0.925574218
A65: 63 | B65: =A65/README!B$4 -> 0.001428571429 | C65: =SIN(2*PI()*B65*README!B$5) -> -0.7818314825
A66: 64 | B66: =A66/README!B$4 -> 0.001451247166 | C66: =SIN(2*PI()*B66*README!B$5) -> -0.5750343933
A67: 65 | B67: =A67/README!B$4 -> 0.001473922902 | C67: =SIN(2*PI()*B67*README!B$5) -> -0.3218610418
A68: 66 | B68: =A68/README!B$4 -> 0.001496598639 | C68: =SIN(2*PI()*B68*README!B$5) -> -0.04272974361
A69: 67 | B69: =A69/README!B$4 -> 0.001519274376 | C69: =SIN(2*PI()*B69*README!B$5) -> 0.239847689
A70: 68 | B70: =A70/README!B$4 -> 0.001541950113 | C70: =SIN(2*PI()*B70*README!B$5) -> 0.5030815145
A71: 69 | B71: =A71/README!B$4 -> 0.00156462585 | C71: =SIN(2*PI()*B71*README!B$5) -> 0.7257420446
A72: 70 | B72: =A72/README!B$4 -> 0.001587301587 | C72: =SIN(2*PI()*B72*README!B$5) -> 0.8898718088
A73: 71 | B73: =A73/README!B$4 -> 0.001609977324 | C73: =SIN(2*PI()*B73*README!B$5) -> 0.9822338162
A74: 72 | B74: =A74/README!B$4 -> 0.001632653061 | C74: =SIN(2*PI()*B74*README!B$5) -> 0.9953791129
A75: 73 | B75: =A75/README!B$4 -> 0.001655328798 | C75: =SIN(2*PI()*B75*README!B$5) -> 0.9282475368
A76: 74 | B76: =A76/README!B$4 -> 0.001678004535 | C76: =SIN(2*PI()*B76*README!B$5) -> 0.7862532188
A77: 75 | B77: =A77/README!B$4 -> 0.001700680272 | C77: =SIN(2*PI()*B77*README!B$5) -> 0.5808479363
A78: 76 | B78: =A78/README!B$4 -> 0.001723356009 | C78: =SIN(2*PI()*B78*README!B$5) -> 0.3285975317
A79: 77 | B79: =A79/README!B$4 -> 0.001746031746 | C79: =SIN(2*PI()*B79*README!B$5) -> 0.04984588566
A80: 78 | B80: =A80/README!B$4 -> 0.001768707483 | C80: =SIN(2*PI()*B80*README!B$5) -> -0.2329258084
A81: 79 | B81: =A81/README!B$4 -> 0.00179138322 | C81: =SIN(2*PI()*B81*README!B$5) -> -0.496912142
A82: 80 | B82: =A82/README!B$4 -> 0.001814058957 | C82: =SIN(2*PI()*B82*README!B$5) -> -0.7208227372
A83: 81 | B83: =A83/README!B$4 -> 0.001836734694 | C83: =SIN(2*PI()*B83*README!B$5) -> -0.8865993064
A84: 82 | B84: =A84/README!B$4 -> 0.001859410431 | C84: =SIN(2*PI()*B84*README!B$5) -> -0.9808720446
A85: 83 | B85: =A85/README!B$4 -> 0.001882086168 | C85: =SIN(2*PI()*B85*README!B$5) -> -0.9960378985
A86: 84 | B86: =A86/README!B$4 -> 0.001904761905 | C86: =SIN(2*PI()*B86*README!B$5) -> -0.9308737486
A87: 85 | B87: =A87/README!B$4 -> 0.001927437642 | C87: =SIN(2*PI()*B87*README!B$5) -> -0.7906350542
A88: 86 | B88: =A88/README!B$4 -> 0.001950113379 | C88: =SIN(2*PI()*B88*README!B$5) -> -0.5866320022
A89: 87 | B89: =A89/README!B$4 -> 0.001972789116 | C89: =SIN(2*PI()*B89*README!B$5) -> -0.3353173459
A90: 88 | B90: =A90/README!B$4 -> 0.001995464853 | C90: =SIN(2*PI()*B90*README!B$5) -> -0.05695949812
A91: 89 | B91: =A91/README!B$4 -> 0.00201814059 | C91: =SIN(2*PI()*B91*README!B$5) -> 0.2259921073
A92: 90 | B92: =A92/README!B$4 -> 0.002040816327 | C92: =SIN(2*PI()*B92*README!B$5) -> 0.490717552
A93: 91 | B93: =A93/README!B$4 -> 0.002063492063 | C93: =SIN(2*PI()*B93*README!B$5) -> 0.7158668493
A94: 92 | B94: =A94/README!B$4 -> 0.0020861678 | C94: =SIN(2*PI()*B94*README!B$5) -> 0.8832818106
A95: 93 | B95: =A95/README!B$4 -> 0.002108843537 | C95: =SIN(2*PI()*B95*README!B$5) -> 0.9794604955
A96: 94 | B96: =A96/README!B$4 -> 0.002131519274 | C96: =SIN(2*PI()*B96*README!B$5) -> 0.9966461368
A97: 95 | B97: =A97/README!B$4 -> 0.002154195011 | C97: =SIN(2*PI()*B97*README!B$5) -> 0.9334527203
A98: 96 | B98: =A98/README!B$4 -> 0.002176870748 | C98: =SIN(2*PI()*B98*README!B$5) -> 0.7949767663
A99: 97 | B99: =A99/README!B$4 -> 0.002199546485 | C99: =SIN(2*PI()*B99*README!B$5) -> 0.5923862976
A100: 98 | B100: =A100/README!B$4 -> 0.002222222222 | C100: =SIN(2*PI()*B100*README!B$5) -> 0.3420201433
A101: 99 | B101: =A101/README!B$4 -> 0.002244897959 | C101: =SIN(2*PI()*B101*README!B$5) -> 0.06407021998
A102: 100 | B102: =A102/README!B$4 -> 0.002267573696 | C102: =SIN(2*PI()*B102*README!B$5) -> -0.2190469375
A103: 101 | B103: =A103/README!B$4 -> 0.002290249433 | C103: =SIN(2*PI()*B103*README!B$5) -> -0.484498059
A104: 102 | B104: =A104/README!B$4 -> 0.00231292517 | C104: =SIN(2*PI()*B104*README!B$5) -> -0.7108746324
A105: 103 | B105: =A105/README!B$4 -> 0.002335600907 | C105: =SIN(2*PI()*B105*README!B$5) -> -0.8799194899
A106: 104 | B106: =A106/README!B$4 -> 0.002358276644 | C106: =SIN(2*PI()*B106*README!B$5) -> -0.9779992406
A107: 105 | B107: =A107/README!B$4 -> 0.002380952381 | C107: =SIN(2*PI()*B107*README!B$5) -> -0.9972037972
A108: 106 | B108: =A108/README!B$4 -> 0.002403628118 | C108: =SIN(2*PI()*B108*README!B$5) -> -0.935984321
A109: 107 | B109: =A109/README!B$4 -> 0.002426303855 | C109: =SIN(2*PI()*B109*README!B$5) -> -0.7992781348
A110: 108 | B110: =A110/README!B$4 -> 0.002448979592 | C110: =SIN(2*PI()*B110*README!B$5) -> -0.5981105305
A111: 109 | B111: =A111/README!B$4 -> 0.002471655329 | C111: =SIN(2*PI()*B111*README!B$5) -> -0.3487055838
A112: 110 | B112: =A112/README!B$4 -> 0.002494331066 | C112: =SIN(2*PI()*B112*README!B$5) -> -0.0711776904
A113: 111 | B113: =A113/README!B$4 -> 0.002517006803 | C113: =SIN(2*PI()*B113*README!B$5) -> 0.2120906514
A114: 112 | B114: =A114/README!B$4 -> 0.00253968254 | C114: =SIN(2*PI()*B114*README!B$5) -> 0.4782539786
A115: 113 | B115: =A115/README!B$4 -> 0.002562358277 | C115: =SIN(2*PI()*B115*README!B$5) -> 0.7058463399
A116: 114 | B116: =A116/README!B$4 -> 0.002585034014 | C116: =SIN(2*PI()*B116*README!B$5) -> 0.8765125148
A117: 115 | B117: =A117/README!B$4 -> 0.002607709751 | C117: =SIN(2*PI()*B117*README!B$5) -> 0.9764883539
A118: 116 | B118: =A118/README!B$4 -> 0.002630385488 | C118: =SIN(2*PI()*B118*README!B$5) -> 0.9977108512
A119: 117 | B119: =A119/README!B$4 -> 0.002653061224 | C119: =SIN(2*PI()*B119*README!B$5) -> 0.938468422
A120: 118 | B120: =A120/README!B$4 -> 0.002675736961 | C120: =SIN(2*PI()*B120*README!B$5) -> 0.8035389413
A121: 119 | B121: =A121/README!B$4 -> 0.002698412698 | C121: =SIN(2*PI()*B121*README!B$5) -> 0.6038044103
A122: 120 | B122: =A122/README!B$4 -> 0.002721088435 | C122: =SIN(2*PI()*B122*README!B$5) -> 0.3553733282
A123: 121 | B123: =A123/README!B$4 -> 0.002743764172 | C123: =SIN(2*PI()*B123*README!B$5) -> 0.07828154867
A124: 122 | B124: =A124/README!B$4 -> 0.002766439909 | C124: =SIN(2*PI()*B124*README!B$5) -> -0.2051236021
A125: 123 | B125: =A125/README!B$4 -> 0.002789115646 | C125: =SIN(2*PI()*B125*README!B$5) -> -0.4719856277
A126: 124 | B126: =A126/README!B$4 -> 0.002811791383 | C126: =SIN(2*PI()*B126*README!B$5) -> -0.700782227
A127: 125 | B127: =A127/README!B$4 -> 0.00283446712 | C127: =SIN(2*PI()*B127*README!B$5) -> -0.8730610583
A128: 126 | B128: =A128/README!B$4 -> 0.002857142857 | C128: =SIN(2*PI()*B128*README!B$5) -> -0.9749279122
A129: 127 | B129: =A129/README!B$4 -> 0.002879818594 | C129: =SIN(2*PI()*B129*README!B$5) -> -0.9981672732
A130: 128 | B130: =A130/README!B$4 -> 0.002902494331 | C130: =SIN(2*PI()*B130*README!B$5) -> -0.9409048976
A131: 129 | B131: =A131/README!B$4 -> 0.002925170068 | C131: =SIN(2*PI()*B131*README!B$5) -> -0.8077589697
A132: 130 | B132: =A132/README!B$4 -> 0.002947845805 | C132: =SIN(2*PI()*B132*README!B$5) -> -0.6094676482
A133: 131 | B133: =A133/README!B$4 -> 0.002970521542 | C133: =SIN(2*PI()*B133*README!B$5) -> -0.3620230379
A134: 132 | B134: =A134/README!B$4 -> 0.002993197279 | C134: =SIN(2*PI()*B134*README!B$5) -> -0.0853814343
A135: 133 | B135: =A135/README!B$4 -> 0.003015873016 | C135: =SIN(2*PI()*B135*README!B$5) -> 0.1981461432
A136: 134 | B136: =A136/README!B$4 -> 0.003038548753 | C136: =SIN(2*PI()*B136*README!B$5) -> 0.4656933243
A137: 135 | B137: =A137/README!B$4 -> 0.00306122449 | C137: =SIN(2*PI()*B137*README!B$5) -> 0.6956825506
A138: 136 | B138: =A138/README!B$4 -> 0.003083900227 | C138: =SIN(2*PI()*B138*README!B$5) -> 0.8695652955
A139: 137 | B139: =A139/README!B$4 -> 0.003106575964 | C139: =SIN(2*PI()*B139*README!B$5) -> 0.9733179946
A140: 138 | B140: =A140/README!B$4 -> 0.003129251701 | C140: =SIN(2*PI()*B140*README!B$5) -> 0.9985730401
A141: 139 | B141: =A141/README!B$4 -> 0.003151927438 | C141: =SIN(2*PI()*B141*README!B$5) -> 0.9432936238
A142: 140 | B142: =A142/README!B$4 -> 0.003174603175 | C142: =SIN(2*PI()*B142*README!B$5) -> 0.8119380057
A143: 141 | B143: =A143/README!B$4 -> 0.003197278912 | C143: =SIN(2*PI()*B143*README!B$5) -> 0.6150999566
A144: 142 | B144: =A144/README!B$4 -> 0.003219954649 | C144: =SIN(2*PI()*B144*README!B$5) -> 0.3686543757
A145: 143 | B145: =A145/README!B$4 -> 0.003242630385 | C145: =SIN(2*PI()*B145*README!B$5) -> 0.09247698697
A146: 144 | B146: =A146/README!B$4 -> 0.003265306122 | C146: =SIN(2*PI()*B146*README!B$5) -> -0.1911586287
A147: 145 | B147: =A147/README!B$4 -> 0.003287981859 | C147: =SIN(2*PI()*B147*README!B$5) -> -0.4593773879
A148: 146 | B148: =A148/README!B$4 -> 0.003310657596 | C148: =SIN(2*PI()*B148*README!B$5) -> -0.6905475696
A149: 147 | B149: =A149/README!B$4 -> 0.003333333333 | C149: =SIN(2*PI()*B149*README!B$5) -> -0.8660254038
A150: 148 | B150: =A150/README!B$4 -> 0.00335600907 | C150: =SIN(2*PI()*B150*README!B$5) -> -0.9716586829
A151: 149 | B151: =A151/README!B$4 -> 0.003378684807 | C151: =SIN(2*PI()*B151*README!B$5) -> -0.9989281311
A152: 150 | B152: =A152/README!B$4 -> 0.003401360544 | C152: =SIN(2*PI()*B152*README!B$5) -> -0.9456344796
A153: 151 | B153: =A153/README!B$4 -> 0.003424036281 | C153: =SIN(2*PI()*B153*README!B$5) -> -0.8160758374
A154: 152 | B154: =A154/README!B$4 -> 0.003446712018 | C154: =SIN(2*PI()*B154*README!B$5) -> -0.6207010498
A155: 153 | B155: =A155/README!B$4 -> 0.003469387755 | C155: =SIN(2*PI()*B155*README!B$5) -> -0.3752670049
A156: 154 | B156: =A156/README!B$4 -> 0.003492063492 | C156: =SIN(2*PI()*B156*README!B$5) -> -0.0995678466
A157: 155 | B157: =A157/README!B$4 -> 0.003514739229 | C157: =SIN(2*PI()*B157*README!B$5) -> 0.1841614132
A158: 156 | B158: =A158/README!B$4 -> 0.003537414966 | C158: =SIN(2*PI()*B158*README!B$5) -> 0.4530381388
A159: 157 | B159: =A159/README!B$4 -> 0.003560090703 | C159: =SIN(2*PI()*B159*README!B$5) -> 0.6853775445
A160: 158 | B160: =A160/README!B$4 -> 0.00358276644 | C160: =SIN(2*PI()*B160*README!B$5) -> 0.8624415629
A161: 159 | B161: =A161/README!B$4 -> 0.003605442177 | C161: =SIN(2*PI()*B161*README!B$5) -> 0.9699500613
A162: 160 | B162: =A162/README!B$4 -> 0.003628117914 | C162: =SIN(2*PI()*B162*README!B$5) -> 0.9992325283
A163: 161 | B163: =A163/README!B$4 -> 0.003650793651 | C163: =SIN(2*PI()*B163*README!B$5) -> 0.9479273462
A164: 162 | B164: =A164/README!B$4 -> 0.003673469388 | C164: =SIN(2*PI()*B164*README!B$5) -> 0.8201722546
A165: 163 | B165: =A165/README!B$4 -> 0.003696145125 | C165: =SIN(2*PI()*B165*README!B$5) -> 0.6262706436
A166: 164 | B166: =A166/README!B$4 -> 0.003718820862 | C166: =SIN(2*PI()*B166*README!B$5) -> 0.3818605899
A167: 165 | B167: =A167/README!B$4 -> 0.003741496599 | C167: =SIN(2*PI()*B167*README!B$5) -> 0.1066536533
A168: 166 | B168: =A168/README!B$4 -> 0.003764172336 | C168: =SIN(2*PI()*B168*README!B$5) -> -0.1771548519
A169: 167 | B169: =A169/README!B$4 -> 0.003786848073 | C169: =SIN(2*PI()*B169*README!B$5) -> -0.4466758989
A170: 168 | B170: =A170/README!B$4 -> 0.00380952381 | C170: =SIN(2*PI()*B170*README!B$5) -> -0.6801727378
A171: 169 | B171: =A171/README!B$4 -> 0.003832199546 | C171: =SIN(2*PI()*B171*README!B$5) -> -0.8588139546
A172: 170 | B172: =A172/README!B$4 -> 0.003854875283 | C172: =SIN(2*PI()*B172*README!B$5) -> -0.9681922164
A173: 171 | B173: =A173/README!B$4 -> 0.00387755102 | C173: =SIN(2*PI()*B173*README!B$5) -> -0.9994862162
A174: 172 | B174: =A174/README!B$4 -> 0.003900226757 | C174: =SIN(2*PI()*B174*README!B$5) -> -0.9501721071
A175: 173 | B175: =A175/README!B$4 -> 0.003922902494 | C175: =SIN(2*PI()*B175*README!B$5) -> -0.8242270496
A176: 174 | B176: =A176/README!B$4 -> 0.003945578231 | C176: =SIN(2*PI()*B176*README!B$5) -> -0.6318084552
A177: 175 | B177: =A177/README!B$4 -> 0.003968253968 | C177: =SIN(2*PI()*B177*README!B$5) -> -0.3884347963
A178: 176 | B178: =A178/README!B$4 -> 0.003990929705 | C178: =SIN(2*PI()*B178*README!B$5) -> -0.1137340476
A179: 177 | B179: =A179/README!B$4 -> 0.004013605442 | C179: =SIN(2*PI()*B179*README!B$5) -> 0.1701393003
A180: 178 | B180: =A180/README!B$4 -> 0.004036281179 | C180: =SIN(2*PI()*B180*README!B$5) -> 0.440290991
A181: 179 | B181: =A181/README!B$4 -> 0.004058956916 | C181: =SIN(2*PI()*B181*README!B$5) -> 0.6749334135
A182: 180 | B182: =A182/README!B$4 -> 0.004081632653 | C182: =SIN(2*PI()*B182*README!B$5) -> 0.855142763
A183: 181 | B183: =A183/README!B$4 -> 0.00410430839 | C183: =SIN(2*PI()*B183*README!B$5) -> 0.9663852375
A184: 182 | B184: =A184/README!B$4 -> 0.004126984127 | C184: =SIN(2*PI()*B184*README!B$5) -> 0.999689182
A185: 183 | B185: =A185/README!B$4 -> 0.004149659864 | C185: =SIN(2*PI()*B185*README!B$5) -> 0.9523686485
A186: 184 | B186: =A186/README!B$4 -> 0.004172335601 | C186: =SIN(2*PI()*B186*README!B$5) -> 0.8282400165
A187: 185 | B187: =A187/README!B$4 -> 0.004195011338 | C187: =SIN(2*PI()*B187*README!B$5) -> 0.6373142037
A188: 186 | B188: =A188/README!B$4 -> 0.004217687075 | C188: =SIN(2*PI()*B188*README!B$5) -> 0.3949892902
A189: 187 | B189: =A189/README!B$4 -> 0.004240362812 | C189: =SIN(2*PI()*B189*README!B$5) -> 0.1208086701
A190: 188 | B190: =A190/README!B$4 -> 0.004263038549 | C190: =SIN(2*PI()*B190*README!B$5) -> -0.1631151144
A191: 189 | B191: =A191/README!B$4 -> 0.004285714286 | C191: =SIN(2*PI()*B191*README!B$5) -> -0.4338837391
A192: 190 | B192: =A192/README!B$4 -> 0.004308390023 | C192: =SIN(2*PI()*B192*README!B$5) -> -0.6696598375
A193: 191 | B193: =A193/README!B$4 -> 0.00433106576 | C193: =SIN(2*PI()*B193*README!B$5) -> -0.8514281745
A194: 192 | B194: =A194/README!B$4 -> 0.004353741497 | C194: =SIN(2*PI()*B194*README!B$5) -> -0.9645292163
A195: 193 | B195: =A195/README!B$4 -> 0.004376417234 | C195: =SIN(2*PI()*B195*README!B$5) -> -0.9998414154
A196: 194 | B196: =A196/README!B$4 -> 0.004399092971 | C196: =SIN(2*PI()*B196*README!B$5) -> -0.9545168589
A197: 195 | B197: =A197/README!B$4 -> 0.004421768707 | C197: =SIN(2*PI()*B197*README!B$5) -> -0.8322109517
A198: 196 | B198: =A198/README!B$4 -> 0.004444444444 | C198: =SIN(2*PI()*B198*README!B$5) -> -0.6427876097
A199: 197 | B199: =A199/README!B$4 -> 0.004467120181 | C199: =SIN(2*PI()*B199*README!B$5) -> -0.4015237392
A200: 198 | B200: =A200/README!B$4 -> 0.004489795918 | C200: =SIN(2*PI()*B200*README!B$5) -> -0.1278771617
... 1849 more rows

Sheet io-impulse
A1: index | B1: Time | C1: x[n] | D1: y[n]
A2: 0 | B2: =A2/README!B$4 -> 0 | C2: 1
A3: 1 | B3: =A3/README!B$4 -> 2.267573696e-05 | C3: 0
A4: 2 | B4: =A4/README!B$4 -> 4.535147392e-05 | C4: 0
A5: 3 | B5: =A5/README!B$4 -> 6.802721088e-05 | C5: 0
A6: 4 | B6: =A6/README!B$4 -> 9.070294785e-05 | C6: 0
A7: 5 | B7: =A7/README!B$4 -> 0.0001133786848 | C7: 0
A8: 6 | B8: =A8/README!B$4 -> 0.0001360544218 | C8: 0
A9: 7 | B9: =A9/README!B$4 -> 0.0001587301587 | C9: 0
A10: 8 | B10: =A10/README!B$4 -> 0.0001814058957 | C10: 0
A11: 9 | B11: =A11/README!B$4 -> 0.0002040816327 | C11: 0
A12: 10 | B12: =A12/README!B$4 -> 0.0002267573696 | C12: 0
A13: 11 | B13: =A13/README!B$4 -> 0.0002494331066 | C13: 0
A14: 12 | B14: =A14/README!B$4 -> 0.0002721088435 | C14: 0
A15: 13 | B15: =A15/README!B$4 -> 0.0002947845805 | C15: 0
A16: 14 | B16: =A16/README!B$4 -> 0.0003174603175 | C16: 0
A17: 15 | B17: =A17/README!B$4 -> 0.0003401360544 | C17: 0
A18: 16 | B18: =A18/README!B$4 -> 0.0003628117914 | C18: 0
A19: 17 | B19: =A19/README!B$4 -> 0.0003854875283 | C19: 0 | F19: 出力の計算にはVBAを使います（詳しくは弊社サイトhttp://digitalfilter.comの「スマホとEXCELで学ぶ！実践ディジタル信号処理入門」ご参照）
A20: 18 | B20: =A20/README!B$4 -> 0.0004081632653 | C20: 0
A21: 19 | B21: =A21/README!B$4 -> 0.0004308390023 | C21: 0
A22: 20 | B22: =A22/README!B$4 -> 0.0004535147392 | C22: 0
A23: 21 | B23: =A23/README!B$4 -> 0.0004761904762 | C23: 0
A24: 22 | B24: =A24/README!B$4 -> 0.0004988662132 | C24: 0
A25: 23 | B25: =A25/README!B$4 -> 0.0005215419501 | C25: 0
A26: 24 | B26: =A26/README!B$4 -> 0.0005442176871 | C26: 0
A27: 25 | B27: =A27/README!B$4 -> 0.000566893424 | C27: 0
A28: 26 | B28: =A28/README!B$4 -> 0.000589569161 | C28: 0
A29: 27 | B29: =A29/README!B$4 -> 0.000612244898 | C29: 0
A30: 28 | B30: =A30/README!B$4 -> 0.0006349206349 | C30: 0
A31: 29 | B31: =A31/README!B$4 -> 0.0006575963719 | C31: 0
A32: 30 | B32: =A32/README!B$4 -> 0.0006802721088 | C32: 0
A33: 31 | B33: =A33/README!B$4 -> 0.0007029478458 | C33: 0
A34: 32 | B34: =A34/README!B$4 -> 0.0007256235828 | C34: 0
A35: 33 | B35: =A35/README!B$4 -> 0.0007482993197 | C35: 0
A36: 34 | B36: =A36/README!B$4 -> 0.0007709750567 | C36: 0
A37: 35 | B37: =A37/README!B$4 -> 0.0007936507937 | C37: 0
A38: 36 | B38: =A38/README!B$4 -> 0.0008163265306 | C38: 0
A39: 37 | B39: =A39/README!B$4 -> 0.0008390022676 | C39: 0
A40: 38 | B40: =A40/README!B$4 -> 0.0008616780045 | C40: 0
A41: 39 | B41: =A41/README!B$4 -> 0.0008843537415 | C41: 0
A42: 40 | B42: =A42/README!B$4 -> 0.0009070294785 | C42: 0
A43: 41 | B43: =A43/README!B$4 -> 0.0009297052154 | C43: 0
A44: 42 | B44: =A44/README!B$4 -> 0.0009523809524 | C44: 0
A45: 43 | B45: =A45/README!B$4 -> 0.0009750566893 | C45: 0
A46: 44 | B46: =A46/README!B$4 -> 0.0009977324263 | C46: 0
A47: 45 | B47: =A47/README!B$4 -> 0.001020408163 | C47: 0
A48: 46 | B48: =A48/README!B$4 -> 0.0010430839 | C48: 0
A49: 47 | B49: =A49/README!B$4 -> 0.001065759637 | C49: 0
A50: 48 | B50: =A50/README!B$4 -> 0.001088435374 | C50: 0
A51: 49 | B51: =A51/README!B$4 -> 0.001111111111 | C51: 0
A52: 50 | B52: =A52/README!B$4 -> 0.001133786848 | C52: 0
A53: 51 | B53: =A53/README!B$4 -> 0.001156462585 | C53: 0
A54: 52 | B54: =A54/README!B$4 -> 0.001179138322 | C54: 0
A55: 53 | B55: =A55/README!B$4 -> 0.001201814059 | C55: 0
A56: 54 | B56: =A56/README!B$4 -> 0.001224489796 | C56: 0
A57: 55 | B57: =A57/README!B$4 -> 0.001247165533 | C57: 0
A58: 56 | B58: =A58/README!B$4 -> 0.00126984127 | C58: 0
A59: 57 | B59: =A59/README!B$4 -> 0.001292517007 | C59: 0
A60: 58 | B60: =A60/README!B$4 -> 0.001315192744 | C60: 0
A61: 59 | B61: =A61/README!B$4 -> 0.001337868481 | C61: 0
A62: 60 | B62: =A62/README!B$4 -> 0.001360544218 | C62: 0
A63: 61 | B63: =A63/README!B$4 -> 0.001383219955 | C63: 0
A64: 62 | B64: =A64/README!B$4 -> 0.001405895692 | C64: 0
A65: 63 | B65: =A65/README!B$4 -> 0.001428571429 | C65: 0
A66: 64 | B66: =A66/README!B$4 -> 0.001451247166 | C66: 0
A67: 65 | B67: =A67/README!B$4 -> 0.001473922902 | C67: 0
A68: 66 | B68: =A68/README!B$4 -> 0.001496598639 | C68: 0
A69: 67 | B69: =A69/README!B$4 -> 0.001519274376 | C69: 0
A70: 68 | B70: =A70/README!B$4 -> 0.001541950113 | C70: 0
A71: 69 | B71: =A71/README!B$4 -> 0.00156462585 | C71: 0
A72: 70 | B72: =A72/README!B$4 -> 0.001587301587 | C72: 0
A73: 71 | B73: =A73/README!B$4 -> 0.001609977324 | C73: 0
A74: 72 | B74: =A74/README!B$4 -> 0.001632653061 | C74: 0
A75: 73 | B75: =A75/README!B$4 -> 0.001655328798 | C75: 0
A76: 74 | B76: =A76/README!B$4 -> 0.001678004535 | C76: 0
A77: 75 | B77: =A77/README!B$4 -> 0.001700680272 | C77: 0
A78: 76 | B78: =A78/README!B$4 -> 0.001723356009 | C78: 0
A79: 77 | B79: =A79/README!B$4 -> 0.001746031746 | C79: 0
A80: 78 | B80: =A80/README!B$4 -> 0.001768707483 | C80: 0
A81: 79 | B81: =A81/README!B$4 -> 0.00179138322 | C81: 0
A82: 80 | B82: =A82/README!B$4 -> 0.001814058957 | C82: 0
A83: 81 | B83: =A83/README!B$4 -> 0.001836734694 | C83: 0
A84: 82 | B84: =A84/README!B$4 -> 0.001859410431 | C84: 0
A85: 83 | B85: =A85/README!B$4 -> 0.001882086168 | C85: 0
A86: 84 | B86: =A86/README!B$4 -> 0.001904761905 | C86: 0
A87: 85 | B87: =A87/README!B$4 -> 0.001927437642 | C87: 0
A88: 86 | B88: =A88/README!B$4 -> 0.001950113379 | C88: 0
A89: 87 | B89: =A89/README!B$4 -> 0.001972789116 | C89: 0
A90: 88 | B90: =A90/README!B$4 -> 0.001995464853 | C90: 0
A91: 89 | B91: =A91/README!B$4 -> 0.00201814059 | C91: 0
A92: 90 | B92: =A92/README!B$4 -> 0.002040816327 | C92: 0
A93: 91 | B93: =A93/README!B$4 -> 0.002063492063 | C93: 0
A94: 92 | B94: =A94/README!B$4 -> 0.0020861678 | C94: 0
A95: 93 | B95: =A95/README!B$4 -> 0.002108843537 | C95: 0
A96: 94 | B96: =A96/README!B$4 -> 0.002131519274 | C96: 0
A97: 95 | B97: =A97/README!B$4 -> 0.002154195011 | C97: 0
A98: 96 | B98: =A98/README!B$4 -> 0.002176870748 | C98: 0
A99: 97 | B99: =A99/README!B$4 -> 0.002199546485 | C99: 0
A100: 98 | B100: =A100/README!B$4 -> 0.002222222222 | C100: 0
A101: 99 | B101: =A101/README!B$4 -> 0.002244897959 | C101: 0
A102: 100 | B102: =A102/README!B$4 -> 0.002267573696 | C102: 0
A103: 101 | B103: =A103/README!B$4 -> 0.002290249433 | C103: 0
A104: 102 | B104: =A104/README!B$4 -> 0.00231292517 | C104: 0
A105: 103 | B105: =A105/README!B$4 -> 0.002335600907 | C105: 0
A106: 104 | B106: =A106/README!B$4 -> 0.002358276644 | C106: 0
A107: 105 | B107: =A107/README!B$4 -> 0.002380952381 | C107: 0
A108: 106 | B108: =A108/README!B$4 -> 0.002403628118 | C108: 0
A109: 107 | B109: =A109/README!B$4 -> 0.002426303855 | C109: 0
A110: 108 | B110: =A110/README!B$4 -> 0.002448979592 | C110: 0
A111: 109 | B111: =A111/README!B$4 -> 0.002471655329 | C111: 0
A112: 110 | B112: =A112/README!B$4 -> 0.002494331066 | C112: 0
A113: 111 | B113: =A113/README!B$4 -> 0.002517006803 | C113: 0
A114: 112 | B114: =A114/README!B$4 -> 0.00253968254 | C114: 0
A115: 113 | B115: =A115/README!B$4 -> 0.002562358277 | C115: 0
A116: 114 | B116: =A116/README!B$4 -> 0.002585034014 | C116: 0
A117: 115 | B117: =A117/README!B$4 -> 0.002607709751 | C117: 0
A118: 116 | B118: =A118/README!B$4 -> 0.002630385488 | C118: 0
A119: 117 | B119: =A119/README!B$4 -> 0.002653061224 | C119: 0
A120: 118 | B120: =A120/README!B$4 -> 0.002675736961 | C120: 0
A121: 119 | B121: =A121/README!B$4 -> 0.002698412698 | C121: 0
A122: 120 | B122: =A122/README!B$4 -> 0.002721088435 | C122: 0
A123: 121 | B123: =A123/README!B$4 -> 0.002743764172 | C123: 0
A124: 122 | B124: =A124/README!B$4 -> 0.002766439909 | C124: 0
A125: 123 | B125: =A125/README!B$4 -> 0.002789115646 | C125: 0
A126: 124 | B126: =A126/README!B$4 -> 0.002811791383 | C126: 0
A127: 125 | B127: =A127/README!B$4 -> 0.00283446712 | C127: 0
A128: 126 | B128: =A128/README!B$4 -> 0.002857142857 | C128: 0
A129: 127 | B129: =A129/README!B$4 -> 0.002879818594 | C129: 0
A130: 128 | B130: =A130/README!B$4 -> 0.002902494331 | C130: 0
A131: 129 | B131: =A131/README!B$4 -> 0.002925170068 | C131: 0
A132: 130 | B132: =A132/README!B$4 -> 0.002947845805 | C132: 0
A133: 131 | B133: =A133/README!B$4 -> 0.002970521542 | C133: 0
A134: 132 | B134: =A134/README!B$4 -> 0.002993197279 | C134: 0
A135: 133 | B135: =A135/README!B$4 -> 0.003015873016 | C135: 0
A136: 134 | B136: =A136/README!B$4 -> 0.003038548753 | C136: 0
A137: 135 | B137: =A137/README!B$4 -> 0.00306122449 | C137: 0
A138: 136 | B138: =A138/README!B$4 -> 0.003083900227 | C138: 0
A139: 137 | B139: =A139/README!B$4 -> 0.003106575964 | C139: 0
A140: 138 | B140: =A140/README!B$4 -> 0.003129251701 | C140: 0
A141: 139 | B141: =A141/README!B$4 -> 0.003151927438 | C141: 0
A142: 140 | B142: =A142/README!B$4 -> 0.003174603175 | C142: 0
A143: 141 | B143: =A143/README!B$4 -> 0.003197278912 | C143: 0
A144: 142 | B144: =A144/README!B$4 -> 0.003219954649 | C144: 0
A145: 143 | B145: =A145/README!B$4 -> 0.003242630385 | C145: 0
A146: 144 | B146: =A146/README!B$4 -> 0.003265306122 | C146: 0
A147: 145 | B147: =A147/README!B$4 -> 0.003287981859 | C147: 0
A148: 146 | B148: =A148/README!B$4 -> 0.003310657596 | C148: 0
A149: 147 | B149: =A149/README!B$4 -> 0.003333333333 | C149: 0
A150: 148 | B150: =A150/README!B$4 -> 0.00335600907 | C150: 0
A151: 149 | B151: =A151/README!B$4 -> 0.003378684807 | C151: 0
A152: 150 | B152: =A152/README!B$4 -> 0.003401360544 | C152: 0
A153: 151 | B153: =A153/README!B$4 -> 0.003424036281 | C153: 0
A154: 152 | B154: =A154/README!B$4 -> 0.003446712018 | C154: 0
A155: 153 | B155: =A155/README!B$4 -> 0.003469387755 | C155: 0
A156: 154 | B156: =A156/README!B$4 -> 0.003492063492 | C156: 0
A157: 155 | B157: =A157/README!B$4 -> 0.003514739229 | C157: 0
A158: 156 | B158: =A158/README!B$4 -> 0.003537414966 | C158: 0
A159: 157 | B159: =A159/README!B$4 -> 0.003560090703 | C159: 0
A160: 158 | B160: =A160/README!B$4 -> 0.00358276644 | C160: 0
A161: 159 | B161: =A161/README!B$4 -> 0.003605442177 | C161: 0
A162: 160 | B162: =A162/README!B$4 -> 0.003628117914 | C162: 0
A163: 161 | B163: =A163/README!B$4 -> 0.003650793651 | C163: 0
A164: 162 | B164: =A164/README!B$4 -> 0.003673469388 | C164: 0
A165: 163 | B165: =A165/README!B$4 -> 0.003696145125 | C165: 0
A166: 164 | B166: =A166/README!B$4 -> 0.003718820862 | C166: 0
A167: 165 | B167: =A167/README!B$4 -> 0.003741496599 | C167: 0
A168: 166 | B168: =A168/README!B$4 -> 0.003764172336 | C168: 0
A169: 167 | B169: =A169/README!B$4 -> 0.003786848073 | C169: 0
A170: 168 | B170: =A170/README!B$4 -> 0.00380952381 | C170: 0
A171: 169 | B171: =A171/README!B$4 -> 0.003832199546 | C171: 0
A172: 170 | B172: =A172/README!B$4 -> 0.003854875283 | C172: 0
A173: 171 | B173: =A173/README!B$4 -> 0.00387755102 | C173: 0
A174: 172 | B174: =A174/README!B$4 -> 0.003900226757 | C174: 0
A175: 173 | B175: =A175/README!B$4 -> 0.003922902494 | C175: 0
A176: 174 | B176: =A176/README!B$4 -> 0.003945578231 | C176: 0
A177: 175 | B177: =A177/README!B$4 -> 0.003968253968 | C177: 0
A178: 176 | B178: =A178/README!B$4 -> 0.003990929705 | C178: 0
A179: 177 | B179: =A179/README!B$4 -> 0.004013605442 | C179: 0
A180: 178 | B180: =A180/README!B$4 -> 0.004036281179 | C180: 0
A181: 179 | B181: =A181/README!B$4 -> 0.004058956916 | C181: 0
A182: 180 | B182: =A182/README!B$4 -> 0.004081632653 | C182: 0
A183: 181 | B183: =A183/README!B$4 -> 0.00410430839 | C183: 0
A184: 182 | B184: =A184/README!B$4 -> 0.004126984127 | C184: 0
A185: 183 | B185: =A185/README!B$4 -> 0.004149659864 | C185: 0
A186: 184 | B186: =A186/README!B$4 -> 0.004172335601 | C186: 0
A187: 185 | B187: =A187/README!B$4 -> 0.004195011338 | C187: 0
A188: 186 | B188: =A188/README!B$4 -> 0.004217687075 | C188: 0
A189: 187 | B189: =A189/README!B$4 -> 0.004240362812 | C189: 0
A190: 188 | B190: =A190/README!B$4 -> 0.004263038549 | C190: 0
A191: 189 | B191: =A191/README!B$4 -> 0.004285714286 | C191: 0
A192: 190 | B192: =A192/README!B$4 -> 0.004308390023 | C192: 0
A193: 191 | B193: =A193/README!B$4 -> 0.00433106576 | C193: 0
A194: 192 | B194: =A194/README!B$4 -> 0.004353741497 | C194: 0
A195: 193 | B195: =A195/README!B$4 -> 0.004376417234 | C195: 0
A196: 194 | B196: =A196/README!B$4 -> 0.004399092971 | C196: 0
A197: 195 | B197: =A197/README!B$4 -> 0.004421768707 | C197: 0
A198: 196 | B198: =A198/README!B$4 -> 0.004444444444 | C198: 0
A199: 197 | B199: =A199/README!B$4 -> 0.004467120181 | C199: 0
A200: 198 | B200: =A200/README!B$4 -> 0.004489795918 | C200: 0
... 1849 more rows
